[Event "Titled Tuesday Blitz January 10 Early 2023"]
[White "Arjun, Kalyan"]
[Black "Ortega Ruiz, Jose Miguel"]
[WhiteFideId "35018701"]
[BlackFideId "2209713"]
[WhiteElo "2516"]
[BlackElo "2351"]
[Result "0-1"]
[Round "01"]
[TimeControl "180+2"]
[Date "2023.01.10"]
[WhiteClock "0:00:37"]
[BlackClock "0:02:33"]

1. e4 {[%clk 0:02:59]}  c5 {[%clk 0:02:49]} 2. Nf3 {[%clk 0:02:59]}  Nc6 {[%clk 0:02:50]} 3. d4 {[%clk 0:02:59]}  cxd4 {[%clk 0:02:51]} 4. Nxd4 {[%clk 0:03:00]}  Nf6 {[%clk 0:02:51]} 5. Nc3 {[%clk 0:03:00]}  e5 {[%clk 0:02:51]} 6. Ndb5 {[%clk 0:03:00]}  d6 {[%clk 0:02:52]} 7. Nd5 {[%clk 0:02:58]}  Nxd5 {[%clk 0:02:52]} 8. exd5 {[%clk 0:02:59]}  Ne7 {[%clk 0:02:52]} 9. c4 {[%clk 0:02:57]}  Ng6 {[%clk 0:02:51]} 10. Qa4 {[%clk 0:02:54]}  Bd7 {[%clk 0:02:51]} 11. Qb4 {[%clk 0:02:54]}  Bf5 {[%clk 0:02:51]} 12. h4 {[%clk 0:02:50]}  h5 {[%clk 0:02:51]} 13. Bg5 {[%clk 0:02:49]}  Qb8 {[%clk 0:02:51]} 14. g3 {[%clk 0:02:48]}  a6 {[%clk 0:02:48]} 15. Nc3 {[%clk 0:02:48]}  Be7 {[%clk 0:02:47]} 16. Be3 {[%clk 0:02:47]}  O-O {[%clk 0:02:46]} 17. Be2 {[%clk 0:02:46]}  e4 {[%clk 0:02:45]} 18. Bxh5 {[%clk 0:02:34]}  Bf6 {[%clk 0:02:45]} 19. Be2 {[%clk 0:02:31]}  Ne5 {[%clk 0:02:45]} 20. O-O-O {[%clk 0:02:25]}  Rc8 {[%clk 0:02:41]} 21. Kb1 {[%clk 0:02:23]}  Nd3 {[%clk 0:02:38]} 22. Bxd3 {[%clk 0:02:23]}  exd3 {[%clk 0:02:39]} 23. Rd2 {[%clk 0:02:19]}  b5 {[%clk 0:02:39]} 24. Qb3 {[%clk 0:01:32]}  bxc4 {[%clk 0:02:38]} 25. Qxb8 {[%clk 0:01:31]}  Raxb8 {[%clk 0:02:39]} 26. Kc1 {[%clk 0:01:29]}  Rb4 {[%clk 0:02:34]} 27. Kd1 {[%clk 0:00:37]}  Bxc3 {[%clk 0:02:33]} 0-1


[Site "https://www.chess.com"]

[Event "Titled Tuesday Blitz January 10 Early 2023"]
[White "Devaev, Alexander"]
[Black "Urazayev, Arystanbek"]
[WhiteFideId "4169395"]
[BlackFideId "13709810"]
[WhiteElo "2325"]
[BlackElo "2460"]
[Result "0-1"]
[Round "01"]
[TimeControl "180+2"]
[Date "2023.01.10"]
[WhiteClock "0:00:01"]
[BlackClock "0:00:35"]

1. d4 {[%clk 0:02:55]}  Nf6 {[%clk 0:02:59]} 2. c4 {[%clk 0:02:55]}  e6 {[%clk 0:03:00]} 3. Nf3 {[%clk 0:02:52]}  b6 {[%clk 0:03:00]} 4. a3 {[%clk 0:02:38]}  Ba6 {[%clk 0:03:00]} 5. Qc2 {[%clk 0:02:36]}  Bb7 {[%clk 0:03:01]} 6. Nc3 {[%clk 0:02:34]}  c5 {[%clk 0:03:01]} 7. d5 {[%clk 0:02:33]}  exd5 {[%clk 0:03:01]} 8. cxd5 {[%clk 0:02:34]}  Nxd5 {[%clk 0:03:01]} 9. Nxd5 {[%clk 0:02:34]}  Bxd5 {[%clk 0:03:01]} 10. e4 {[%clk 0:02:35]}  Bb7 {[%clk 0:03:01]} 11. Bd3 {[%clk 0:02:35]}  Be7 {[%clk 0:03:01]} 12. O-O {[%clk 0:02:35]}  O-O {[%clk 0:02:51]} 13. Bf4 {[%clk 0:02:35]}  d6 {[%clk 0:02:51]} 14. Rad1 {[%clk 0:02:35]}  Nc6 {[%clk 0:02:52]} 15. Rfe1 {[%clk 0:02:36]}  h6 {[%clk 0:02:35]} 16. Bc4 {[%clk 0:02:07]}  Qc7 {[%clk 0:02:35]} 17. e5 {[%clk 0:02:03]}  Rad8 {[%clk 0:02:05]} 18. e6 {[%clk 0:02:01]}  fxe6 {[%clk 0:01:58]} 19. Rxe6 {[%clk 0:01:52]}  Kh8 {[%clk 0:01:29]} 20. Bxh6 {[%clk 0:01:50]}  Bf6 {[%clk 0:01:28]} 21. Bg5 {[%clk 0:00:48]}  Ne5 {[%clk 0:01:13]} 22. Nxe5 {[%clk 0:00:29]}  dxe5 {[%clk 0:01:13]} 23. Be3 {[%clk 0:00:12]}  Bc8 {[%clk 0:01:04]} 24. Rxf6 {[%clk 0:00:04]}  gxf6 {[%clk 0:00:46]} 25. h3 {[%clk 0:00:02]}  Qh7 {[%clk 0:00:43]} 26. Qe2 {[%clk 0:00:02]}  Bf5 {[%clk 0:00:39]} 27. b4 {[%clk 0:00:01]}  cxb4 {[%clk 0:00:39]} 28. axb4 {[%clk 0:00:01]}  Bc2 {[%clk 0:00:35]} 29. Ra1 {[%clk 0:00:01]}  Bd3 {[%clk 0:00:35]} 0-1


[Site "https://www.chess.com"]

[Event "Titled Tuesday Blitz January 10 Early 2023"]
[White "Zeman, Matyas"]
[Black "Lagarde, Maxime"]
[WhiteFideId "364398"]
[BlackFideId "662399"]
[WhiteElo "2296"]
[BlackElo "2579"]
[Result "0-1"]
[Round "01"]
[TimeControl "180+2"]
[Date "2023.01.10"]
[WhiteClock "0:00:03"]
[BlackClock "0:01:18"]

1. d4 {[%clk 0:03:00]}  Nf6 {[%clk 0:02:54]} 2. Bf4 {[%clk 0:03:00]}  b6 {[%clk 0:02:52]} 3. e3 {[%clk 0:02:59]}  Bb7 {[%clk 0:02:52]} 4. Nf3 {[%clk 0:02:57]}  g6 {[%clk 0:02:53]} 5. Nbd2 {[%clk 0:02:56]}  Bg7 {[%clk 0:02:53]} 6. Bd3 {[%clk 0:02:56]}  O-O {[%clk 0:02:54]} 7. h3 {[%clk 0:02:53]}  d6 {[%clk 0:02:54]} 8. O-O {[%clk 0:02:53]}  c5 {[%clk 0:02:54]} 9. a4 {[%clk 0:02:53]}  Nc6 {[%clk 0:02:55]} 10. c3 {[%clk 0:02:53]}  Qd7 {[%clk 0:02:54]} 11. Bh2 {[%clk 0:02:53]}  Rac8 {[%clk 0:02:55]} 12. Nc4 {[%clk 0:02:49]}  Rfd8 {[%clk 0:02:54]} 13. Qe2 {[%clk 0:02:48]}  cxd4 {[%clk 0:02:54]} 14. exd4 {[%clk 0:02:46]}  Na5 {[%clk 0:02:54]} 15. Nxa5 {[%clk 0:02:42]}  bxa5 {[%clk 0:02:55]} 16. Rfe1 {[%clk 0:02:40]}  Nd5 {[%clk 0:02:48]} 17. Bc4 {[%clk 0:02:15]}  e6 {[%clk 0:02:46]} 18. Ng5 {[%clk 0:02:10]}  Qc7 {[%clk 0:02:34]} 19. Bb5 {[%clk 0:02:04]}  h6 {[%clk 0:02:33]} 20. Ne4 {[%clk 0:02:03]}  Qe7 {[%clk 0:02:14]} 21. Rad1 {[%clk 0:01:32]}  Nb6 {[%clk 0:02:14]} 22. Bf4 {[%clk 0:01:03]}  Bd5 {[%clk 0:02:10]} 23. Qe3 {[%clk 0:00:57]}  g5 {[%clk 0:02:09]} 24. Bg3 {[%clk 0:00:47]}  f5 {[%clk 0:02:07]} 25. Nxd6 {[%clk 0:00:46]}  Rxd6 {[%clk 0:02:07]} 26. Bxd6 {[%clk 0:00:44]}  Qxd6 {[%clk 0:02:08]} 27. Ba6 {[%clk 0:00:26]}  Rb8 {[%clk 0:02:05]} 28. Bb5 {[%clk 0:00:26]}  Rc8 {[%clk 0:02:02]} 29. Ba6 {[%clk 0:00:25]}  Rc7 {[%clk 0:01:59]} 30. Bb5 {[%clk 0:00:25]}  Nc4 {[%clk 0:01:57]} 31. Bxc4 {[%clk 0:00:25]}  Rxc4 {[%clk 0:01:55]} 32. b3 {[%clk 0:00:24]}  f4 {[%clk 0:01:52]} 33. Qd3 {[%clk 0:00:21]}  Rc7 {[%clk 0:01:51]} 34. c4 {[%clk 0:00:22]}  Bb7 {[%clk 0:01:50]} 35. d5 {[%clk 0:00:20]}  e5 {[%clk 0:01:25]} 36. Qe4 {[%clk 0:00:20]}  Bc8 {[%clk 0:01:23]} 37. Kh2 {[%clk 0:00:18]}  Bd7 {[%clk 0:01:23]} 38. g4 {[%clk 0:00:18]}  Be8 {[%clk 0:01:23]} 39. Qf5 {[%clk 0:00:17]}  Bg6 {[%clk 0:01:21]} 40. Qe6+ {[%clk 0:00:14]}  Qxe6 {[%clk 0:01:22]} 41. dxe6 {[%clk 0:00:15]}  Re7 {[%clk 0:01:22]} 42. Rd6 {[%clk 0:00:15]}  e4 {[%clk 0:01:19]} 43. Red1 {[%clk 0:00:14]}  Be5 {[%clk 0:01:20]} 44. Rd8+ {[%clk 0:00:13]}  Kg7 {[%clk 0:01:20]} 45. R1d7 {[%clk 0:00:14]}  Kf6 {[%clk 0:01:20]} 46. Rxe7 {[%clk 0:00:13]}  Kxe7 {[%clk 0:01:20]} 47. Rd7+ {[%clk 0:00:11]}  Kxe6 {[%clk 0:01:20]} 48. Rxa7 {[%clk 0:00:12]}  e3 {[%clk 0:01:18]} 49. fxe3 {[%clk 0:00:10]}  fxe3+ {[%clk 0:01:19]} 50. Kg2 {[%clk 0:00:09]}  Be4+ {[%clk 0:01:18]} 51. Kf1 {[%clk 0:00:09]}  Bd3+ {[%clk 0:01:18]} 52. Kg1 {[%clk 0:00:07]}  e2 {[%clk 0:01:18]} 53. Ra6+ {[%clk 0:00:08]}  Kd7 {[%clk 0:01:19]} 54. Kf2 {[%clk 0:00:03]}  Bd4+ {[%clk 0:01:18]} 55. Ke1 {[%clk 0:00:03]}  Bc3+ {[%clk 0:01:18]} 0-1


[Site "https://www.chess.com"]

[Event "Titled Tuesday Blitz January 10 Early 2023"]
[White "Mahdavi, Reza"]
[Black "Papayan, Oleg"]
[WhiteFideId "12595926"]
[BlackFideId "4193911"]
[WhiteElo "2339"]
[BlackElo "2253"]
[Result "1-0"]
[Round "01"]
[TimeControl "180+2"]
[Date "2023.01.10"]
[WhiteClock "0:00:39"]
[BlackClock "0:00:01"]

1. g3 {[%clk 0:03:00]}  d5 {[%clk 0:02:51]} 2. d3 {[%clk 0:02:59]}  e5 {[%clk 0:02:43]} 3. Bg2 {[%clk 0:02:59]}  Nc6 {[%clk 0:02:42]} 4. Nd2 {[%clk 0:02:56]}  Nf6 {[%clk 0:02:37]} 5. Ngf3 {[%clk 0:02:54]}  Bd6 {[%clk 0:02:12]} 6. e4 {[%clk 0:02:49]}  h6 {[%clk 0:02:03]} 7. O-O {[%clk 0:02:45]}  Be6 {[%clk 0:02:03]} 8. Re1 {[%clk 0:02:43]}  d4 {[%clk 0:02:04]} 9. Nh4 {[%clk 0:02:40]}  Qd7 {[%clk 0:02:02]} 10. Nf5 {[%clk 0:02:21]}  g6 {[%clk 0:01:56]} 11. Ng7+ {[%clk 0:02:05]}  Kf8 {[%clk 0:01:50]} 12. Nxe6+ {[%clk 0:02:06]}  fxe6 {[%clk 0:01:37]} 13. Nc4 {[%clk 0:02:07]}  Kg7 {[%clk 0:01:37]} 14. f4 {[%clk 0:02:04]}  b5 {[%clk 0:01:17]} 15. fxe5 {[%clk 0:01:50]}  Nxe5 {[%clk 0:01:15]} 16. Nd2 {[%clk 0:01:44]}  Raf8 {[%clk 0:00:59]} 17. Nf3 {[%clk 0:01:36]}  c5 {[%clk 0:00:50]} 18. Rf1 {[%clk 0:01:31]}  Nxf3+ {[%clk 0:00:43]} 19. Bxf3 {[%clk 0:01:23]}  e5 {[%clk 0:00:44]} 20. a4 {[%clk 0:01:19]}  bxa4 {[%clk 0:00:22]} 21. Bd2 {[%clk 0:01:19]}  Rb8 {[%clk 0:00:21]} 22. Ra2 {[%clk 0:01:17]}  Rb7 {[%clk 0:00:15]} 23. Qa1 {[%clk 0:01:17]}  Rhb8 {[%clk 0:00:16]} 24. Rxa4 {[%clk 0:01:17]}  Rxb2 {[%clk 0:00:16]} 25. Rxa7 {[%clk 0:01:17]}  R8b7 {[%clk 0:00:16]} 26. Rxb7 {[%clk 0:01:18]}  Rxb7 {[%clk 0:00:17]} 27. Qc1 {[%clk 0:01:19]}  h5 {[%clk 0:00:13]} 28. Bh6+ {[%clk 0:01:18]}  Kh7 {[%clk 0:00:12]} 29. Bg5 {[%clk 0:01:17]}  Ne8 {[%clk 0:00:11]} 30. Be2 {[%clk 0:01:16]}  Qg7 {[%clk 0:00:08]} 31. Qa3 {[%clk 0:01:14]}  Rf7 {[%clk 0:00:05]} 32. Qa8 {[%clk 0:01:11]}  Rxf1+ {[%clk 0:00:05]} 33. Kxf1 {[%clk 0:01:11]}  Qf7+ {[%clk 0:00:06]} 34. Kg2 {[%clk 0:01:12]}  Ng7 {[%clk 0:00:07]} 35. Qc6 {[%clk 0:01:12]}  Be7 {[%clk 0:00:05]} 36. Bd2 {[%clk 0:01:10]}  Ne6 {[%clk 0:00:04]} 37. Qd5 {[%clk 0:01:10]}  Qf6 {[%clk 0:00:02]} 38. Ba5 {[%clk 0:01:08]}  Nf8 {[%clk 0:00:02]} 39. Bc7 {[%clk 0:01:07]}  Qe6 {[%clk 0:00:01]} 40. Qxe6 {[%clk 0:01:06]}  Nxe6 {[%clk 0:00:02]} 41. Bxe5 {[%clk 0:01:07]}  g5 {[%clk 0:00:01]} 42. Bxh5 {[%clk 0:01:07]}  Kh6 {[%clk 0:00:02]} 43. Bg4 {[%clk 0:01:07]}  Nf8 {[%clk 0:00:02]} 44. Bf5 {[%clk 0:01:07]}  Nd7 {[%clk 0:00:02]} 45. Bc7 {[%clk 0:01:07]}  Nf6 {[%clk 0:00:02]} 46. Kf3 {[%clk 0:01:06]}  Ne8 {[%clk 0:00:03]} 47. e5 {[%clk 0:01:06]}  Nxc7 {[%clk 0:00:02]} 48. Ke4 {[%clk 0:01:05]}  Nb5 {[%clk 0:00:03]} 49. Kd5 {[%clk 0:01:05]}  Na3 {[%clk 0:00:03]} 50. Ke6 {[%clk 0:01:04]}  Bd8 {[%clk 0:00:04]} 51. Kd7 {[%clk 0:01:04]}  Ba5 {[%clk 0:00:02]} 52. e6 {[%clk 0:01:05]}  Nb5 {[%clk 0:00:02]} 53. e7 {[%clk 0:01:04]}  Nc7 {[%clk 0:00:03]} 54. Be4 {[%clk 0:00:49]}  Kh5 {[%clk 0:00:03]} 55. h3 {[%clk 0:00:48]}  g4 {[%clk 0:00:02]} 56. h4 {[%clk 0:00:47]}  Kh6 {[%clk 0:00:03]} 57. Bf5 {[%clk 0:00:46]}  Kh5 {[%clk 0:00:03]} 58. Kc6 {[%clk 0:00:42]}  Kh6 {[%clk 0:00:02]} 59. Bxg4 {[%clk 0:00:41]}  Kg7 {[%clk 0:00:02]} 60. Kd7 {[%clk 0:00:41]}  Kf6 {[%clk 0:00:01]} 61. Bf3 {[%clk 0:00:41]}  c4 {[%clk 0:00:01]} 62. dxc4 {[%clk 0:00:39]} 1-0


[Site "https://www.chess.com"]

[Event "Titled Tuesday Blitz January 10 Early 2023"]
[White "Moskvin, Anatoly"]
[Black "Boros, Denes"]
[WhiteFideId "24199990"]
[BlackFideId "722340"]
[WhiteElo "2189"]
[BlackElo "2406"]
[Result "0-1"]
[Round "01"]
[TimeControl "180+2"]
[Date "2023.01.10"]
[WhiteClock "0:00:27"]
[BlackClock "0:00:33"]

1. e4 {[%clk 0:03:00]}  g6 {[%clk 0:02:59]} 2. d4 {[%clk 0:03:01]}  d5 {[%clk 0:03:00]} 3. exd5 {[%clk 0:02:59]}  Qxd5 {[%clk 0:03:01]} 4. Nf3 {[%clk 0:02:58]}  Bg7 {[%clk 0:03:01]} 5. c4 {[%clk 0:02:58]}  Qd8 {[%clk 0:03:01]} 6. Be2 {[%clk 0:02:53]}  Nh6 {[%clk 0:03:01]} 7. h3 {[%clk 0:02:52]}  Nf5 {[%clk 0:03:01]} 8. Be3 {[%clk 0:02:49]}  c5 {[%clk 0:02:59]} 9. Qa4+ {[%clk 0:02:26]}  Bd7 {[%clk 0:02:52]} 10. Qd1 {[%clk 0:02:25]}  cxd4 {[%clk 0:02:33]} 11. Nxd4 {[%clk 0:02:20]}  Nxe3 {[%clk 0:02:33]} 12. fxe3 {[%clk 0:02:21]}  e5 {[%clk 0:02:33]} 13. Nb5 {[%clk 0:02:10]}  Qh4+ {[%clk 0:02:31]} 14. Kf1 {[%clk 0:02:08]}  Bxb5 {[%clk 0:02:28]} 15. cxb5 {[%clk 0:02:06]}  O-O {[%clk 0:02:26]} 16. Nc3 {[%clk 0:02:05]}  Rd8 {[%clk 0:02:19]} 17. Qe1 {[%clk 0:02:01]}  Qg5 {[%clk 0:02:15]} 18. Bf3 {[%clk 0:01:57]}  Nd7 {[%clk 0:02:13]} 19. Bxb7 {[%clk 0:01:48]}  Rab8 {[%clk 0:02:13]} 20. Be4 {[%clk 0:01:45]}  Nc5 {[%clk 0:02:03]} 21. a4 {[%clk 0:01:27]}  Kh8 {[%clk 0:01:54]} 22. h4 {[%clk 0:01:20]}  Qg4 {[%clk 0:01:49]} 23. Bf3 {[%clk 0:01:18]}  Qb4 {[%clk 0:01:45]} 24. Ne4 {[%clk 0:01:02]}  Qc4+ {[%clk 0:01:37]} 25. Qe2 {[%clk 0:01:02]}  Nxe4 {[%clk 0:01:37]} 26. Qxc4 {[%clk 0:00:50]}  Nd2+ {[%clk 0:01:37]} 27. Ke2 {[%clk 0:00:50]}  Nxc4 {[%clk 0:01:38]} 28. b3 {[%clk 0:00:51]}  Nd6 {[%clk 0:01:34]} 29. Bd5 {[%clk 0:00:51]}  Nf5 {[%clk 0:01:34]} 30. Rhd1 {[%clk 0:00:49]}  Bh6 {[%clk 0:01:32]} 31. Bxf7 {[%clk 0:00:49]}  Ng3+ {[%clk 0:01:26]} 32. Kf3 {[%clk 0:00:47]}  Rf8 {[%clk 0:01:23]} 33. Kxg3 {[%clk 0:00:48]}  Rxf7 {[%clk 0:01:23]} 34. e4 {[%clk 0:00:45]}  Rc8 {[%clk 0:01:14]} 35. Rd3 {[%clk 0:00:45]}  Rc2 {[%clk 0:01:13]} 36. Kh3 {[%clk 0:00:42]}  Rff2 {[%clk 0:01:03]} 37. g3 {[%clk 0:00:42]}  Bf8 {[%clk 0:00:56]} 38. h5 {[%clk 0:00:41]}  gxh5 {[%clk 0:00:46]} 39. Kh4 {[%clk 0:00:41]}  Be7+ {[%clk 0:00:32]} 40. Kxh5 {[%clk 0:00:41]}  Kg7 {[%clk 0:00:33]} 41. Rd7 {[%clk 0:00:35]}  Kf6 {[%clk 0:00:33]} 42. Kg4 {[%clk 0:00:28]}  Rh2 {[%clk 0:00:31]} 43. Rf1+ {[%clk 0:00:28]}  Kg6 {[%clk 0:00:31]} 44. Rxe7 {[%clk 0:00:26]}  h5+ {[%clk 0:00:32]} 45. Kf3 {[%clk 0:00:27]}  Rc3# {[%clk 0:00:33]} 0-1


[Site "https://www.chess.com"]

[Event "Titled Tuesday Blitz January 10 Early 2023"]
[White "Postny, Evgeny"]
[Black "Kazancev, Valerij M"]
[WhiteFideId "2804344"]
[BlackFideId "4179609"]
[WhiteElo "2549"]
[BlackElo "2313"]
[Result "1-0"]
[Round "01"]
[TimeControl "180+2"]
[Date "2023.01.10"]
[WhiteClock "0:02:01"]
[BlackClock "0:01:34"]

1. e4 {[%clk 0:03:00]}  c5 {[%clk 0:02:58]} 2. Nf3 {[%clk 0:02:59]}  d6 {[%clk 0:02:56]} 3. d4 {[%clk 0:03:00]}  cxd4 {[%clk 0:02:56]} 4. Nxd4 {[%clk 0:03:01]}  Nf6 {[%clk 0:02:57]} 5. Nc3 {[%clk 0:03:01]}  a6 {[%clk 0:02:57]} 6. f3 {[%clk 0:03:01]}  e5 {[%clk 0:02:56]} 7. Nb3 {[%clk 0:03:01]}  Be6 {[%clk 0:02:56]} 8. Be3 {[%clk 0:03:01]}  Nbd7 {[%clk 0:02:56]} 9. g4 {[%clk 0:03:01]}  Be7 {[%clk 0:02:51]} 10. Qd2 {[%clk 0:03:01]}  O-O {[%clk 0:02:50]} 11. O-O-O {[%clk 0:03:00]}  Rc8 {[%clk 0:02:43]} 12. h4 {[%clk 0:02:59]}  Nc5 {[%clk 0:02:21]} 13. Nxc5 {[%clk 0:02:53]}  dxc5 {[%clk 0:02:21]} 14. g5 {[%clk 0:02:45]}  Nh5 {[%clk 0:02:11]} 15. Nd5 {[%clk 0:02:43]}  Re8 {[%clk 0:01:58]} 16. Bh3 {[%clk 0:02:35]}  Bf8 {[%clk 0:01:54]} 17. Qf2 {[%clk 0:02:22]}  Qa5 {[%clk 0:01:48]} 18. Kb1 {[%clk 0:02:22]}  Nf4 {[%clk 0:01:36]} 19. Bxf4 {[%clk 0:02:14]}  exf4 {[%clk 0:01:36]} 20. Bxe6 {[%clk 0:02:10]}  Rxe6 {[%clk 0:01:35]} 21. Nxf4 {[%clk 0:02:11]}  c4 {[%clk 0:01:33]} 22. Nxe6 {[%clk 0:02:03]}  fxe6 {[%clk 0:01:34]} 23. c3 {[%clk 0:02:01]} 1-0


[Site "https://www.chess.com"]

[Event "Titled Tuesday Blitz January 10 Early 2023"]
[White "Melikhov, Evgeny V."]
[Black "Shipov, Sergei"]
[WhiteFideId "4122046"]
[BlackFideId "4113624"]
[WhiteElo "2269"]
[BlackElo "2541"]
[Result "1/2-1/2"]
[Round "01"]
[TimeControl "180+2"]
[Date "2023.01.10"]
[WhiteClock "0:00:08"]
[BlackClock "0:00:18"]

1. d4 {[%clk 0:03:00]}  Nf6 {[%clk 0:02:58]} 2. c4 {[%clk 0:03:00]}  c5 {[%clk 0:02:58]} 3. d5 {[%clk 0:02:59]}  b5 {[%clk 0:02:58]} 4. cxb5 {[%clk 0:03:00]}  a6 {[%clk 0:02:59]} 5. b6 {[%clk 0:03:01]}  d6 {[%clk 0:02:59]} 6. Nc3 {[%clk 0:03:01]}  Nbd7 {[%clk 0:02:59]} 7. a4 {[%clk 0:03:02]}  Qxb6 {[%clk 0:02:55]} 8. a5 {[%clk 0:03:02]}  Qb4 {[%clk 0:02:55]} 9. Ra4 {[%clk 0:03:01]}  Qb8 {[%clk 0:02:53]} 10. e4 {[%clk 0:02:59]}  g6 {[%clk 0:02:53]} 11. Nf3 {[%clk 0:02:59]}  Bg7 {[%clk 0:02:53]} 12. Be2 {[%clk 0:02:59]}  O-O {[%clk 0:02:53]} 13. O-O {[%clk 0:02:59]}  Qa7 {[%clk 0:02:35]} 14. Ra3 {[%clk 0:02:44]}  Rb8 {[%clk 0:02:33]} 15. Re1 {[%clk 0:02:21]}  Ne8 {[%clk 0:02:31]} 16. Bg5 {[%clk 0:02:06]}  f6 {[%clk 0:02:15]} 17. Bc1 {[%clk 0:01:57]}  Nc7 {[%clk 0:02:15]} 18. Rb3 {[%clk 0:01:40]}  Ne5 {[%clk 0:02:08]} 19. Nd2 {[%clk 0:01:32]}  Bd7 {[%clk 0:02:07]} 20. Rxb8 {[%clk 0:01:10]}  Rxb8 {[%clk 0:02:07]} 21. Na4 {[%clk 0:01:08]}  Bxa4 {[%clk 0:01:55]} 22. Qxa4 {[%clk 0:01:07]}  Rb4 {[%clk 0:01:55]} 23. Qc2 {[%clk 0:01:05]}  Nb5 {[%clk 0:01:55]} 24. b3 {[%clk 0:00:47]}  Nd4 {[%clk 0:01:52]} 25. Qc3 {[%clk 0:00:47]}  Qb7 {[%clk 0:01:14]} 26. Bc4 {[%clk 0:00:46]}  f5 {[%clk 0:01:07]} 27. Qh3 {[%clk 0:00:44]}  f4 {[%clk 0:01:00]} 28. Ba3 {[%clk 0:00:32]}  Nxc4 {[%clk 0:00:54]} 29. bxc4 {[%clk 0:00:26]}  Nc2 {[%clk 0:00:48]} 30. Bxb4 {[%clk 0:00:25]}  Nxe1 {[%clk 0:00:48]} 31. Bc3 {[%clk 0:00:24]}  Bxc3 {[%clk 0:00:28]} 32. Qxc3 {[%clk 0:00:22]}  Qb4 {[%clk 0:00:28]} 33. Qxb4 {[%clk 0:00:19]}  cxb4 {[%clk 0:00:29]} 34. Nb3 {[%clk 0:00:19]}  Nd3 {[%clk 0:00:29]} 35. Kf1 {[%clk 0:00:11]}  Kg7 {[%clk 0:00:20]} 36. Ke2 {[%clk 0:00:10]}  Nc5 {[%clk 0:00:20]} 37. Nxc5 {[%clk 0:00:10]}  dxc5 {[%clk 0:00:20]} 38. e5 {[%clk 0:00:10]}  g5 {[%clk 0:00:20]} 39. g4 {[%clk 0:00:10]}  fxg3 {[%clk 0:00:18]} 40. fxg3 {[%clk 0:00:09]}  g4 {[%clk 0:00:18]} 41. e6 {[%clk 0:00:07]}  Kf6 {[%clk 0:00:18]} 42. Kd3 {[%clk 0:00:07]}  h5 {[%clk 0:00:18]} 43. Kc2 {[%clk 0:00:07]}  Ke5 {[%clk 0:00:18]} 44. Kb3 {[%clk 0:00:07]}  Kd6 {[%clk 0:00:17]} 45. Kb2 {[%clk 0:00:07]}  Ke5 {[%clk 0:00:18]} 46. Kb3 {[%clk 0:00:07]}  Kf5 {[%clk 0:00:18]} 47. Kb2 {[%clk 0:00:08]}  Ke5 {[%clk 0:00:18]} 48. Kb3 {[%clk 0:00:08]} 1/2-1/2


[Site "https://www.chess.com"]

[Event "Titled Tuesday Blitz January 10 Early 2023"]
[White "Rakhmanov, Aleksandr"]
[Black "Salman, Pavel"]
[WhiteFideId "4173708"]
[BlackFideId "24153753"]
[WhiteElo "2632"]
[BlackElo "2287"]
[Result "1-0"]
[Round "01"]
[TimeControl "180+2"]
[Date "2023.01.10"]
[WhiteClock "0:00:08"]
[BlackClock "0:00:16"]

1. d4 {[%clk 0:02:59]}  Nf6 {[%clk 0:02:55]} 2. c4 {[%clk 0:02:57]}  c5 {[%clk 0:02:55]} 3. d5 {[%clk 0:02:57]}  b5 {[%clk 0:02:55]} 4. cxb5 {[%clk 0:02:58]}  a6 {[%clk 0:02:55]} 5. b6 {[%clk 0:02:58]}  e6 {[%clk 0:02:55]} 6. Nc3 {[%clk 0:02:59]}  Nxd5 {[%clk 0:02:56]} 7. Nxd5 {[%clk 0:03:00]}  exd5 {[%clk 0:02:56]} 8. Qxd5 {[%clk 0:03:01]}  Nc6 {[%clk 0:02:57]} 9. e4 {[%clk 0:03:01]}  Be7 {[%clk 0:02:57]} 10. Bc4 {[%clk 0:03:01]}  O-O {[%clk 0:02:58]} 11. Nf3 {[%clk 0:03:02]}  Rb8 {[%clk 0:02:58]} 12. Bd2 {[%clk 0:03:02]}  Rxb6 {[%clk 0:02:59]} 13. Bc3 {[%clk 0:03:03]}  d6 {[%clk 0:02:57]} 14. O-O {[%clk 0:02:55]}  Be6 {[%clk 0:02:57]} 15. Qd3 {[%clk 0:02:55]}  Bf6 {[%clk 0:02:52]} 16. Bxf6 {[%clk 0:02:19]}  Qxf6 {[%clk 0:02:50]} 17. Bxe6 {[%clk 0:02:12]}  Qxe6 {[%clk 0:02:47]} 18. b3 {[%clk 0:02:12]}  Ne5 {[%clk 0:02:38]} 19. Nxe5 {[%clk 0:02:08]}  Qxe5 {[%clk 0:02:39]} 20. Rad1 {[%clk 0:02:05]}  Re8 {[%clk 0:02:37]} 21. f3 {[%clk 0:02:02]}  h6 {[%clk 0:02:28]} 22. Qc4 {[%clk 0:01:57]}  Re6 {[%clk 0:02:09]} 23. Rd5 {[%clk 0:01:48]}  Qb2 {[%clk 0:02:04]} 24. Qa4 {[%clk 0:01:21]}  Rg6 {[%clk 0:01:57]} 25. g3 {[%clk 0:01:13]}  Kh7 {[%clk 0:01:34]} 26. Rf2 {[%clk 0:01:06]}  Qc3 {[%clk 0:01:16]} 27. Kg2 {[%clk 0:01:00]}  Re6 {[%clk 0:01:11]} 28. Qd7 {[%clk 0:00:58]}  Qf6 {[%clk 0:01:08]} 29. Rf5 {[%clk 0:00:58]}  Qe7 {[%clk 0:00:33]} 30. Rxf7 {[%clk 0:00:54]}  Qxd7 {[%clk 0:00:33]} 31. Rxd7 {[%clk 0:00:55]}  Kg6 {[%clk 0:00:31]} 32. g4 {[%clk 0:00:51]}  Kf6 {[%clk 0:00:30]} 33. h4 {[%clk 0:00:51]}  g5 {[%clk 0:00:30]} 34. Rd2 {[%clk 0:00:41]}  gxh4 {[%clk 0:00:18]} 35. Kh3 {[%clk 0:00:41]}  a5 {[%clk 0:00:17]} 36. Kxh4 {[%clk 0:00:39]}  Ke5 {[%clk 0:00:18]} 37. Kg3 {[%clk 0:00:25]}  Rf6 {[%clk 0:00:17]} 38. Re7+ {[%clk 0:00:16]}  Re6 {[%clk 0:00:16]} 39. Rd5+ {[%clk 0:00:15]}  Kf6 {[%clk 0:00:17]} 40. Ra7 {[%clk 0:00:13]}  Re8 {[%clk 0:00:09]} 41. Rxa5 {[%clk 0:00:12]}  Rc8 {[%clk 0:00:08]} 42. Ra7 {[%clk 0:00:12]}  Ke6 {[%clk 0:00:08]} 43. Rh7 {[%clk 0:00:11]}  c4 {[%clk 0:00:09]} 44. bxc4 {[%clk 0:00:10]}  Rxc4 {[%clk 0:00:08]} 45. Rxh6+ {[%clk 0:00:11]}  Kd7 {[%clk 0:00:09]} 46. Rh7+ {[%clk 0:00:11]}  Kc6 {[%clk 0:00:09]} 47. Rh6 {[%clk 0:00:11]}  Kc7 {[%clk 0:00:08]} 48. g5 {[%clk 0:00:11]}  Rc2 {[%clk 0:00:08]} 49. g6 {[%clk 0:00:11]}  Rxa2 {[%clk 0:00:09]} 50. g7 {[%clk 0:00:05]}  Ra8 {[%clk 0:00:09]} 51. Rh8 {[%clk 0:00:04]}  Rbb8 {[%clk 0:00:10]} 52. Rxb8 {[%clk 0:00:03]}  Rxb8 {[%clk 0:00:11]} 53. Kg4 {[%clk 0:00:03]}  Rg8 {[%clk 0:00:12]} 54. Rg5 {[%clk 0:00:03]}  Kd7 {[%clk 0:00:12]} 55. Kh5 {[%clk 0:00:04]}  Ke7 {[%clk 0:00:13]} 56. Kg6 {[%clk 0:00:05]}  Ke6 {[%clk 0:00:13]} 57. Rf5 {[%clk 0:00:05]}  Ra8 {[%clk 0:00:12]} 58. Rf8 {[%clk 0:00:06]}  Ra1 {[%clk 0:00:12]} 59. g8=Q+ {[%clk 0:00:06]}  Ke5 {[%clk 0:00:13]} 60. Re8+ {[%clk 0:00:06]}  Kf4 {[%clk 0:00:13]} 61. Qf7+ {[%clk 0:00:06]}  Ke3 {[%clk 0:00:13]} 62. Qf5 {[%clk 0:00:07]}  Rg1+ {[%clk 0:00:14]} 63. Kf6 {[%clk 0:00:07]}  Rh1 {[%clk 0:00:13]} 64. Qg5+ {[%clk 0:00:08]}  Kd3 {[%clk 0:00:13]} 65. Ke6 {[%clk 0:00:08]}  Ke2 {[%clk 0:00:13]} 66. Kxd6 {[%clk 0:00:07]}  Rd1+ {[%clk 0:00:14]} 67. Ke6 {[%clk 0:00:08]}  Ra1 {[%clk 0:00:15]} 68. Qd5 {[%clk 0:00:08]}  Kxf3 {[%clk 0:00:15]} 69. Qf5+ {[%clk 0:00:07]}  Ke3 {[%clk 0:00:15]} 70. Qc5+ {[%clk 0:00:08]}  Kf3 {[%clk 0:00:15]} 71. Rf8+ {[%clk 0:00:08]}  Kxe4 {[%clk 0:00:16]} 72. Qe5+ {[%clk 0:00:08]} 1-0


[Site "https://www.chess.com"]